bitfinex/quotes_SOLUSD_20240827
["timestamp","ask_amount","ask_price","bid_price","bid_amount"]
[1724777014351,6.4842,154.22,154.17,6.4862]
[1724777014745,56.68473454,154.25,154.16,15.0885]
[1724777014944,6.4851,154.2,154.16,15.0885]
[1724777015750,0.12549,154.19,154.16,15.0885]
[1724777016347,6.11059,154.2,154.16,15.0885]
[1724777017239,56.68473454,154.25,154.16,15.0885]
[1724777017240,6.486,154.18,154.16,15.0885]
[1724777017439,45.0,154.19,154.16,15.0885]
[1724777017633,51.4856,154.19,154.16,15.0885]
[1724777018453,0.12549,154.18,154.16,15.0885]
[1724777019047,0.25098,154.18,154.16,15.0885]
[1724777020935,6.73698,154.18,154.16,15.0885]
[1724777021337,6.4863,154.17,154.16,15.0885]
[1724777021555,6.4863,154.17,154.14,6.3187]
[1724777021556,6.4868,154.16,154.14,6.3187]
[1724777021739,6.4864,154.17,154.14,6.3187]
[1724777021940,0.25098,154.18,154.14,12.8059]
[1724777022243,0.12549,154.18,154.15,1.29743525]
[1724777023649,6.61139,154.18,154.14,12.8062]
[1724777023843,6.4863,154.17,154.14,6.3187]
[1724777024040,16.2047,154.28,154.15,16.91272502]
[1724777024234,6.4838,154.23,154.18,6.4858]
[1724777025056,6.4838,154.23,154.18,22.7]
[1724777025535,0.12549,154.22,154.18,22.7]
[1724777025737,6.4838,154.23,154.19,6.4854]
[1724777026347,45.0,154.22,154.19,6.4854]
[1724777026540,51.4843,154.22,154.18,22.7]
[1724777026938,0.25098,154.21,154.17,6.4862]
[1724777027138,6.4854,154.2,154.16,6.4867]
[1724777027362,0.25098,154.21,154.17,1.29714413]
[1724777027756,6.73578,154.21,154.17,6.4862]
[1724777028361,0.25098,154.21,154.16,6.4867]
[1724777028732,6.73568,154.21,154.17,6.4862]
[1724777028932,6.4851,154.2,154.16,6.4866]
[1724777029136,6.73658,154.19,154.15,38.3197]
[1724777029360,6.61159,154.18,154.15,15.6154]
[1724777029658,6.4861,154.18,154.15,15.6154]
[1724777029864,0.25098,154.17,154.12,22.709]
[1724777030035,0.25098,154.17,154.11,15.0984]
[1724777030036,6.4872,154.15,154.11,15.0984]
[1724777030238,0.25098,154.14,154.11,15.0984]
[1724777031165,6.73888,154.14,154.11,15.0984]
[1724777031458,45.25098,154.14,154.11,15.0984]
[1724777031962,45.25098,154.14,154.1,6.4891]
[1724777031963,6.73868,154.14,154.1,6.4891]
[1724777032961,6.73868,154.14,154.09,22.7133]
[1724777033166,6.4888,154.12,154.07,6.4903]
[1724777033461,6.4889,154.11,154.06,15.8502]
[1724777033769,45.0,154.13,154.06,15.8502]
[1724777033770,0.12549,154.12,154.06,15.8502]
[1724777033969,0.25098,154.12,154.06,15.8502]
[1724777034762,6.4891,154.11,154.06,22.341]
[1724777035063,0.12549,154.1,154.06,22.341]
[1724777035259,6.61479,154.1,154.06,22.341]
[1724777035648,0.12549,154.1,154.06,22.341]
[1724777037560,6.61479,154.1,154.06,15.8502]
[1724777037764,0.12549,154.1,154.06,15.8502]
[1724777037962,0.12549,154.1,154.06,32.077]
[1724777038263,6.4887,154.12,154.07,6.4904]
[1724777038471,6.4872,154.15,154.11,6.4887]
[1724777038843,6.4872,154.15,154.1,1.2976636]
[1724777039669,6.4868,154.16,154.12,6.4884]
[1724777040171,45.0,154.15,154.12,6.4884]
[1724777040543,6.4864,154.17,154.12,6.4884]
[1724777041562,6.4864,154.17,154.11,6.4887]
[1724777041764,6.4871,154.16,154.1,6.4891]
[1724777041944,0.25098,154.15,154.1,6.4891]
[1724777042743,45.25098,154.15,154.1,6.4891]
[1724777043056,51.73818,154.15,154.1,6.4891]
[1724777043264,45.25098,154.15,154.09,16.224]
[1724777043773,51.73818,154.15,154.1,6.4889]
[1724777045743,0.25098,154.15,154.11,6.4887]
[1724777045944,6.4864,154.17,154.12,6.4884]
[1724777046156,6.4859,154.18,154.13,6.4876]
[1724777046678,1.12986899,154.19,154.12,1.29745405]
[1724777046679,6.4863,154.17,154.12,7.78575405]
[1724777047968,0.25098,154.16,154.12,6.4883]
[1724777048269,6.4859,154.18,154.13,6.4879]
[1724777048851,32.37565153,154.21,154.13,16.2194]
[1724777049270,1.12948285,154.22,154.13,31.5084]
[1724777049443,1.12948285,154.22,154.16,6.4866]
[1724777049771,1.12948285,154.22,154.15,16.2175]
[1724777049772,6.4843,154.22,154.15,16.2175]
[1724777049974,6.4843,154.22,154.16,7.7838453]
[1724777050548,6.4843,154.22,154.16,6.4867]
[1724777050742,6.4847,154.21,154.16,6.4867]
[1724777050958,6.4852,154.2,154.15,16.2175]
[1724777051160,45.25098,154.19,154.14,6.4873]
[1724777051949,51.73678,154.19,154.13,21.7768]
[1724777052352,6.4859,154.18,154.13,21.7768]
[1724777052646,0.25098,154.17,154.13,21.7768]
[1724777053361,0.25098,154.17,154.13,15.289]
[1724777053573,6.73718,154.18,154.13,15.289]
[1724777053753,0.25098,154.18,154.14,6.4874]
[1724777054154,0.25098,154.18,154.13,37.9965]
[1724777054560,6.4865,154.17,154.13,15.289]
[1724777054779,6.4875,154.15,154.13,15.289]
[1724777054958,6.4864,154.17,154.13,15.289]
[1724777055280,0.25098,154.18,154.1,16.2226]
[1724777055281,45.12549,154.16,154.1,16.2226]
[1724777055588,6.4865,154.17,154.12,6.4881]
[1724777055755,0.25098,154.18,154.13,6.4878]
[1724777055955,0.25098,154.18,154.15,6.487]
[1724777056170,6.4846,154.21,154.16,7.7840649]
[1724777056752,7.82675557,154.26,154.17,1.29711831]
[1724777056970,7.61181793,154.26,154.2,6.485]
[1724777057278,6.483,154.25,154.2,6.485]
[1724777057675,6.4838,154.23,154.18,16.2139]
[1724777058254,6.4838,154.23,154.18,17.5108706]
[1724777058459,6.4838,154.23,154.18,16.2139]
[1724777058880,6.4838,154.23,154.18,17.5109375]
[1724777059050,6.4842,154.22,154.18,17.5109375]
[1724777059983,6.4842,154.22,154.16,6.4866]
[1724777060167,6.4842,154.22,154.17,1.29700526]
[1724777060353,6.4842,154.22,154.17,6.4863]
[1724777061264,6.4837,154.24,154.18,6.4857]
[1724777061660,6.4842,154.22,154.17,6.4862]
[1724777061857,6.4841,154.23,154.17,6.4862]
[1724777062786,0.25098,154.22,154.15,31.866]
[1724777062961,6.485,154.21,154.15,31.866]
[1724777063163,6.485,154.2,154.15,31.866]
[1724777063365,6.4847,154.21,154.15,38.353]
[1724777064677,0.25098,154.22,154.15,15.6484]
[1724777064862,6.61019,154.21,154.15,22.1355]
[1724777065064,6.4847,154.21,154.15,22.1355]
[1724777065258,0.12549,154.2,154.16,6.4867]
[1724777066058,0.12549,154.2,154.15,22.1354]
[1724777067071,0.12549,154.2,154.16,16.2162]
[1724777067263,0.12549,154.2,154.16,22.7028]
[1724777067465,45.25098,154.21,154.16,22.7028]
[1724777069004,51.73588,154.21,154.16,22.7028]
[1724777073885,6.4859,154.18,154.15,15.6484]
[1724777074586,6.4856,154.19,154.15,15.6484]
[1724777077082,6.4856,154.19,154.1,32.37391703]
[1724777077083,6.4867,154.16,154.11,15.6641]
[1724777077380,6.4864,154.17,154.11,15.6641]
[1724777078193,0.12549,154.18,154.11,15.6641]
[1724777078194,0.12549,154.18,154.12,16.2204]
[1724777078368,0.12549,154.18,154.13,6.4877]
[1724777078567,6.4863,154.17,154.12,22.7087]
[1724777079389,6.4868,154.16,154.11,22.1528]
[1724777079889,6.4884,154.13,154.11,15.6641]
[1724777080403,6.4877,154.14,154.11,15.6641]
[1724777082700,6.61279,154.15,154.11,15.6641]
[1724777083385,6.4877,154.14,154.09,6.4896]
[1724777086589,0.12549,154.15,154.08,16.2248]
[1724777086590,6.488,154.13,154.08,22.7149]
[1724777087712,6.4877,154.14,154.08,22.7149]
[1724777088305,6.4877,154.14,154.09,6.4896]
[1724777090510,6.488,154.13,154.08,22.7148]
[1724777091427,6.4876,154.14,154.09,6.4893]
[1724777099907,6.4884,154.12,154.08,16.2248]
[1724777100309,6.61359,154.13,154.08,22.7148]
[1724777100618,0.12549,154.13,154.09,6.4893]
[1724777100785,17.34406737,154.19,154.1,16.2226]
[1724777100989,12.95899908,154.17,154.1,16.2226]
[1724777101306,45.25098,154.16,154.1,16.2226]
[1724777101610,6.4876,154.14,154.09,6.4896]
[1724777102309,6.4876,154.14,154.08,19.44899908]
[1724777103388,6.4876,154.14,154.08,6.49]
[1724777103600,12.95899908,154.15,154.1,6.4891]
[1724777103906,12.95899908,154.15,154.07,31.4366]
[1724777103907,6.4866,154.17,154.09,16.2234]
[1724777104084,6.4863,154.18,154.12,25.98309908]
[1724777104285,6.4853,154.2,154.14,19.44649908]
[1724777104505,6.4853,154.2,154.15,1.2971408]
[1724777104684,6.4847,154.21,154.15,7.7840408]
[1724777104887,6.4843,154.22,154.16,23.138]
[1724777105520,6.4843,154.22,154.17,1.29703927]
[1724777105810,6.4843,154.22,154.18,1.29704084]
[1724777106009,6.4843,154.22,154.16,23.138]
[1724777106403,6.4847,154.21,154.16,23.138]
[1724777106609,6.4859,154.18,154.16,16.6515]
[1724777107445,6.4855,154.19,154.16,16.6515]
[1724777107908,16.2079,154.25,154.16,16.6515]
[1724777108109,12.95899908,154.23,154.16,16.6515]
[1724777108296,6.4849,154.21,154.16,16.6515]
[1724777109009,6.4843,154.22,154.17,1.29708037]
[1724777109307,6.4843,154.22,154.18,1.29701271]
[1724777109507,6.4839,154.23,154.18,6.4858]
[1724777109910,6.4839,154.23,154.17,19.44519908]
[1724777112814,0.12549,154.24,154.17,29.17439908]
[1724777113021,6.4842,154.22,154.16,23.1378]
[1724777113192,6.4842,154.22,154.17,6.4862]
[1724777114210,45.0,154.21,154.16,16.6515]
[1724777114416,45.0,154.21,154.17,1.29717629]
[1724777114417,6.61059,154.2,154.17,1.29717629]
[1724777114795,0.12549,154.2,154.17,1.29717629]
[1724777115119,51.4844,154.22,154.17,6.4863]
[1724777115314,6.4844,154.22,154.17,6.4863]
[1724777115823,6.4849,154.21,154.16,16.6515]
[1724777116113,6.61049,154.2,154.16,16.6515]
[1724777116614,6.4847,154.21,154.16,23.1381]
[1724777117419,6.4843,154.22,154.16,23.1381]
[1724777118216,6.4843,154.22,154.17,1.29701084]
[1724777118718,6.4843,154.22,154.16,23.1381]
[1724777118719,6.4843,154.22,154.18,1.29696889]
[1724777118917,6.4839,154.23,154.18,1.29696889]
[1724777119099,6.4839,154.23,154.16,45.82689908]
[1724777119595,6.4842,154.22,154.17,6.4862]
[1724777120093,6.4847,154.21,154.16,39.3545]
[1724777120818,6.4852,154.2,154.16,32.8679]
[1724777121192,6.4857,154.19,154.16,16.6515]
[1724777122401,6.4852,154.2,154.16,16.6515]
[1724777123520,6.61019,154.21,154.17,1.29713925]
[1724777123696,6.4847,154.21,154.17,1.29713925]
[1724777123894,29.16819908,154.24,154.17,7.78343925]
[1724777123895,6.4843,154.22,154.17,7.78343925]
[1724777124094,12.95899908,154.24,154.18,20.7468097]
[1724777124095,6.4835,154.24,154.18,20.7468097]
[1724777124314,6.4835,154.24,154.19,6.4854]
[1724777124529,6.4835,154.24,154.2,1.29673665]
[1724777124695,1.12893097,154.3,154.22,16.21]
[1724777124890,0.2246077,154.34,154.22,16.21]
[1724777124891,0.2246077,154.34,154.27,15.8095]
[1724777125894,6.7038077,154.34,154.28,6.4817]
[1724777126102,32.54379794,154.34,154.27,15.8095]
[1724777126526,6.4805,154.31,154.27,15.8095]
[1724777127206,45.12549,154.3,154.27,15.8095]
[1724777127504,0.12549,154.29,154.27,15.8095]
[1724777127929,0.12549,154.29,154.24,6.4833]
[1724777128518,0.12549,154.29,154.24,7.77974871]
[1724777128723,6.4804,154.31,154.25,6.4829]
[1724777130132,0.12549,154.3,154.25,6.4829]
[1724777130431,0.12549,154.3,154.26,1.29629141]
[1724777130732,6.4801,154.32,154.27,1.29625265]
[1724777130911,0.2246077,154.34,154.28,22.444]
[1724777131117,0.2246077,154.34,154.33,6.4796]
[1724777131313,6.4753,154.44,154.36,16.1955]
[1724777131528,6.4754,154.43,154.36,16.1955]
[1724777131711,6.4754,154.43,154.37,6.4775]
[1724777132416,32.31919024,154.45,154.36,16.1955]
[1724777133313,6.4758,154.43,154.37,6.4778]
[1724777134332,6.475,154.44,154.38,7.77275793]
[1724777134631,1.12762871,154.47,154.4,6.4764]
[1724777134808,6.4742,154.46,154.4,6.4764]
[1724777135426,6.4742,154.46,154.4,7.77155304]
[1724777135735,6.4742,154.46,154.4,6.4764]
[1724777136038,1.12762871,154.47,154.4,7.77155322]
[1724777136339,1.12762871,154.47,154.41,6.4762]
[1724777136925,7.60142871,154.47,154.4,7.77175322]
[1724777137129,7.60142871,154.47,154.4,7.77172858]
[1724777137513,1.12762871,154.47,154.41,28.9086]
[1724777137737,0.8396237,154.5,154.41,28.9086]
[1724777138727,0.8396237,154.5,154.4,6.4766]
[1724777138934,0.8396237,154.5,154.37,22.4324]
[1724777138935,32.31919024,154.47,154.37,22.4324]
[1724777139136,0.12549,154.43,154.37,22.4324]
[1724777140016,0.12549,154.43,154.37,28.9102]
[1724777141230,0.12549,154.41,154.37,22.4324]
[1724777142242,45.25098,154.41,154.37,28.9102]
[1724777142940,45.25098,154.41,154.37,22.4324]
[1724777143923,45.25098,154.41,154.34,32.31919024]
[1724777144129,51.72738,154.41,154.33,44.687]
[1724777145142,51.72738,154.41,154.34,38.79829024]
[1724777145344,45.25098,154.41,154.34,38.79829024]
[1724777145931,45.25098,154.41,154.34,32.31919024]
[1724777146240,45.25098,154.41,154.34,38.79829024]
[1724777146537,51.72758,154.41,154.34,32.31919024]
[1724777147244,51.72758,154.41,154.35,1.29558435]
[1724777147723,45.25098,154.41,154.36,1.29558425]
[1724777148241,45.25098,154.41,154.36,33.61477449]
[1724777148433,25.5356,154.42,154.38,32.31919024]
[1724777148745,25.5356,154.42,154.38,33.6144538]
[1724777148948,25.5356,154.42,154.38,32.31919024]
[1724777149734,0.12549,154.41,154.38,32.31919024]
[1724777149929,0.25098,154.41,154.38,32.31919024]
[1724777150229,45.25098,154.41,154.36,38.79739024]
[1724777150824,45.25098,154.41,154.37,1.29544095]
[1724777151739,0.25098,154.41,154.37,7.77314095]
[1724777151927,0.25098,154.41,154.38,32.31919024]
[1724777152127,0.12549,154.41,154.39,1.29527271]
[1724777152649,25.5356,154.42,154.38,38.79649024]
[1724777152844,25.5356,154.42,154.38,32.31919024]
[1724777153342,25.5356,154.42,154.38,38.79659024]
[1724777154054,25.5356,154.42,154.4,32.31919024]
[1724777155640,0.12549,154.41,154.37,22.672]
[1724777155840,0.25098,154.41,154.37,22.672]
[1724777156528,0.25098,154.41,154.38,1.2953253]
[1724777158754,0.25098,154.41,154.38,33.61451554]
[1724777159757,25.5356,154.42,154.38,38.79659024]
[1724777160757,0.12549,154.41,154.38,32.31919024]
[1724777160929,0.25098,154.41,154.38,32.31919024]
[1724777161128,0.25098,154.41,154.36,32.31919024]
[1724777161342,45.25098,154.41,154.36,32.31919024]
[1724777161749,45.25098,154.41,154.36,38.79749024]
[1724777162752,45.25098,154.41,154.35,6.4787]
[1724777163144,0.25098,154.41,154.34,54.99549024]
[1724777163455,45.0,154.4,154.34,54.99549024]
[1724777163632,0.25098,154.39,154.34,54.99549024]
[1724777163832,0.12549,154.38,154.34,54.99549024]
[1724777164231,0.25098,154.41,154.34,54.99549024]
[1724777164956,0.25098,154.41,154.38,32.31919024]
[1724777166059,1.12775429,154.47,154.4,32.31919024]
[1724777166351,391.3734,154.48,154.41,1.29506584]
[1724777167357,391.3734,154.48,154.4,32.31919024]
[1724777167739,391.3734,154.48,154.4,33.61432264]
[1724777167937,6.4734,154.48,154.4,33.61432264]
[1724777168234,51.59949,154.47,154.38,54.98989024]
[1724777168449,6.0913,154.49,154.38,54.98989024]
[1724777168450,6.4734,154.48,154.38,54.98989024]
[1724777168947,6.4734,154.48,154.39,1.29515839]
[1724777169732,45.25098,154.47,154.39,1.29515839]
[1724777170332,45.25098,154.47,154.39,6.4769]
[1724777170544,45.25098,154.47,154.38,48.51249024]
[1724777170740,45.0,154.46,154.4,38.79549024]
[1724777170935,0.25098,154.45,154.41,1.29498994]
[1724777171161,0.12549,154.45,154.41,1.29498994]
[1724777171853,0.12549,154.45,154.41,7.77118994]
[1724777172058,1.12768031,154.49,154.44,32.31919024]
[1724777172248,0.8396237,154.5,154.46,32.31919024]
[1724777172556,0.8396237,154.5,154.47,1.29456008]
[1724777173057,0.8396237,154.5,154.48,48.50189024]
[1724777173243,0.8396237,154.5,154.49,7.76715839]
[1724777173442,0.8396237,154.5,154.49,7.76711683]
[1724777173759,0.8396237,154.5,154.49,6.4729]
[1724777174460,0.8396237,154.5,154.48,71.24899024]
[1724777175436,0.8396237,154.5,154.46,45.02419024]
[1724777175629,0.8396237,154.5,154.45,6.4744]
[1724777175846,0.12549,154.49,154.45,6.4744]
[1724777176636,0.8396237,154.5,154.46,40.08772625]
[1724777177432,0.8396237,154.5,154.46,38.79319024]
[1724777177634,0.8396237,154.5,154.46,33.61368555]
[1724777177830,0.12549,154.49,154.46,32.31919024]
[1724777178954,0.25098,154.49,154.47,1.29465287]
[1724777179962,0.25098,154.49,154.45,6.4745]
[1724777180559,0.25098,154.49,154.4,22.8627]
[1724777180743,51.72398,154.49,154.4,22.8627]
[1724777181562,45.25098,154.49,154.4,22.8627]
[1724777182060,45.25098,154.49,154.4,16.3861]
[1724777182263,45.0,154.48,154.38,55.13629024]
[1724777182450,0.25098,154.47,154.38,48.51239024]
[1724777182649,0.12549,154.47,154.38,16.1932]
[1724777182851,6.72478,154.47,154.38,16.1932]
[1724777183060,51.4745,154.46,154.36,22.8644]
[1724777183357,6.60938,154.45,154.36,6.4783]
[1724777183549,45.0,154.44,154.36,6.4783]
[1724777183867,0.25098,154.43,154.35,32.11025062]
[1724777184240,0.25098,154.43,154.35,9.43475062]
[1724777184449,6.72668,154.43,154.34,13.103]
[1724777184655,45.0,154.42,154.34,6.4791]
[1724777184857,0.25098,154.41,154.34,6.4791]
[1724777185557,0.25098,154.41,154.33,6.4794]
[1724777187066,0.25098,154.41,154.34,6.4791]
[1724777191671,0.25098,154.41,154.35,17.20887879]
[1724777191874,0.25098,154.41,154.36,33.61462339]
[1724777192047,0.25098,154.41,154.36,43.04937401]
[1724777192253,0.25098,154.41,154.37,22.6725]
[1724777192565,0.25098,154.41,154.38,1.29531753]
[1724777193169,6.3584,154.45,154.38,7.77281753]
[1724777193666,6.3584,154.45,154.38,6.4775]
[1724777194070,6.3584,154.45,154.37,16.1947]
[1724777194468,45.25098,154.44,154.37,16.1947]
[1724777195253,45.25098,154.44,154.37,17.49004124]
[1724777196375,45.25098,154.44,154.38,6.4774]
[1724777196756,45.25098,154.44,154.37,17.49004124]
[1724777196757,45.25098,154.44,154.39,7.7722254]
[1724777197151,45.25098,154.44,154.39,1.2952254]
[1724777197494,23.10186195,154.47,154.4,1.29522512]
[1724777197651,16.386,154.47,154.4,7.77152512]
[1724777197849,16.386,154.47,154.41,6.4761]
[1724777198371,16.386,154.47,154.42,1.29498068]
[1724777198571,384.9,154.49,154.42,6.4758]
[1724777198951,384.9,154.49,154.41,22.6662]
[1724777199263,384.9,154.49,154.43,6.4754]
[1724777199450,0.8396237,154.5,154.43,6.4754]
[1724777199646,0.8396237,154.5,154.42,6.4757]
[1724777199870,0.8396237,154.5,154.43,6.4753]
[1724777200277,0.8396237,154.5,154.44,6.4749]
[1724777200475,0.8396237,154.5,154.41,45.2151872]
[1724777200854,0.12549,154.49,154.41,45.2151872]
[1724777201052,0.25098,154.49,154.41,45.2151872]
[1724777201384,0.25098,154.49,154.42,6.4757]
[1724777201561,0.25098,154.49,154.41,16.1901]
[1724777201762,0.25098,154.49,154.42,1.29494826]
[1724777202284,0.25098,154.49,154.43,1.29494864]
[1724777202457,0.25098,154.49,154.41,16.1901]
[1724777202659,0.25098,154.49,154.42,1.29494442]
[1724777203278,0.25098,154.49,154.43,1.29493809]
[1724777203777,0.25098,154.49,154.41,22.6662]
[1724777204163,0.25098,154.49,154.41,23.96112431]
[1724777204574,0.25098,154.49,154.42,6.4756]
[1724777204776,0.25098,154.49,154.41,22.6663]
[1724777205885,6.72408,154.49,154.39,51.6188872]
[1724777206060,51.4733,154.48,154.39,16.1168]
[1724777206391,45.25098,154.47,154.39,22.5938]
[1724777207464,0.25098,154.47,154.39,22.5938]
[1724777208787,0.25098,154.47,154.39,32.02855062]
[1724777209679,0.25098,154.47,154.39,9.43475062]
[1724777211969,0.25098,154.47,154.39,15.91175062]
[1724777214193,15.6168,154.46,154.35,32.1038]
[1724777214375,45.25098,154.45,154.35,32.1038]
[1724777214691,45.25098,154.45,154.33,41.88930566]
[1724777214692,45.25098,154.45,154.33,15.48975062]
[1724777214884,6.475,154.44,154.35,6.4787]
[1724777215083,45.25098,154.43,154.35,6.4787]
[1724777215278,45.25098,154.43,154.33,9.43475062]
[1724777215279,26.39955504,154.42,154.33,9.43475062]
[1724777215591,32.87625504,154.4,154.3,6.4807]
[1724777215789,45.25098,154.39,154.3,6.4807]
[1724777216290,26.39955504,154.38,154.28,6.2258]
[1724777216484,45.25098,154.37,154.28,6.2258]
[1724777216693,45.25098,154.37,154.28,12.7074]
[1724777216869,45.25098,154.37,154.29,1.29600187]
[1724777217069,45.25098,154.37,154.3,1.2959851]
[1724777218092,0.25098,154.37,154.3,1.2959851]
[1724777219773,0.25098,154.37,154.28,22.4292]
[1724777220392,0.25098,154.37,154.29,6.4811]
[1724777221894,0.25098,154.37,154.3,36.81424332]
[1724777222082,0.25098,154.37,154.31,6.4803]
[1724777222392,0.25098,154.37,154.32,1.29570756]
[1724777222603,0.25098,154.37,154.3,32.70876087]
[1724777222773,0.25098,154.37,154.3,22.6824]
[1724777222971,0.25098,154.37,154.3,16.2017]
[1724777223189,6.72888,154.37,154.28,6.4815]
[1724777223391,45.0,154.36,154.28,6.4815]
[1724777223597,0.25098,154.35,154.28,6.4815]
[1724777224595,0.25098,154.35,154.3,6.4808]
[1724777224993,392.50453804,154.41,154.32,6.4799]
[1724777225291,392.50453804,154.41,154.27,25.65890617]
[1724777225292,26.39955504,154.4,154.28,16.2036]
[1724777225485,6.4778,154.38,154.28,22.6849]
[1724777226270,6.60359,154.37,154.28,22.6849]
[1724777226513,15.845,154.35,154.24,6.4546]
[1724777226798,45.25098,154.34,154.25,1.29622108]
[1724777226996,45.25098,154.34,154.25,11.32258195]
[1724777227302,45.25098,154.34,154.27,6.482]
[1724777227476,45.25098,154.34,154.28,1.2960894]
[1724777227677,45.25098,154.34,154.28,7.7777894]
[1724777228398,45.25098,154.34,154.28,1.2960894]
[1724777228574,45.25098,154.34,154.28,6.4816]
[1724777228779,0.25098,154.34,154.28,6.4816]
[1724777231675,45.25098,154.34,154.27,6.482]
[1724777232196,45.25098,154.34,154.27,7.77808823]
[1724777232909,45.25098,154.34,154.27,6.482]
[1724777233403,45.25098,154.34,154.28,1.29608029]
[1724777233988,0.25098,154.34,154.29,6.4812]
[1724777234191,0.25098,154.34,154.28,1.29608029]
[1724777234192,0.25098,154.34,154.28,6.4815]
[1724777234398,0.25098,154.34,154.29,1.29601342]
[1724777234780,0.25098,154.34,154.3,1.29601288]
[1724777235908,0.25098,154.34,154.29,1.29601318]
[1724777236113,0.25098,154.34,154.3,1.29601329]
[1724777236408,0.25098,154.34,154.27,6.482]
[1724777237205,0.25098,154.34,154.28,7.77773895]
[1724777238704,0.25098,154.34,154.29,6.4812]
[1724777238913,0.25098,154.34,154.3,1.29599408]
[1724777239610,45.25098,154.34,154.3,1.29599408]
[1724777239787,45.25098,154.34,154.28,6.4815]
[1724777240502,45.25098,154.34,154.29,1.29603061]
[1724777240714,45.25098,154.34,154.3,1.29602836]
[1724777241717,45.25098,154.34,154.22,9.29030617]
[1724777241718,15.6437,154.3,154.22,6.4841]
[1724777241919,10.70255402,154.29,154.21,6.4845]
[1724777242089,10.70255402,154.29,154.2,16.2123]
[1724777242090,6.23149,154.28,154.2,16.2123]
[1724777242419,10.70255402,154.27,154.18,6.4858]
[1724777242598,0.12549,154.26,154.17,33.27886402]
[1724777242791,10.70255402,154.26,154.17,33.27886402]
[1724777242989,0.12549,154.25,154.18,6.4858]
[1724777244690,0.12549,154.25,154.18,6.4857]
[1724777245010,0.12549,154.25,154.2,6.4847]
[1724777245204,0.12549,154.25,154.21,1.29661237]
[1724777245605,6.106,154.28,154.23,6.4837]
[1724777245803,15.6437,154.3,154.24,1.29634667]
[1724777246023,15.6437,154.3,154.24,17.50414667]
[1724777246322,15.6437,154.3,154.27,26.47388666]
[1724777246813,6.106,154.32,154.27,32.95588666]
[1724777246993,15.4083,154.34,154.29,26.47388666]
[1724777247196,15.4083,154.34,154.3,1.2959709]
[1724777247702,6.106,154.36,154.31,26.47388666]
[1724777248005,6.106,154.36,154.32,1.29585031]
[1724777248699,6.106,154.36,154.31,26.47388666]
[1724777249689,0.12549,154.35,154.31,26.47388666]
[1724777249887,0.12549,154.35,154.31,34.24977711]
[1724777250092,15.4083,154.38,154.31,34.24977711]
[1724777250093,15.4083,154.38,154.33,26.47388666]
[1724777250292,6.0082,154.4,154.33,34.24904854]
[1724777250509,6.0082,154.4,154.35,26.47388666]
[1724777250710,16.2028,154.42,154.36,1.2954746]
[1724777250922,6.0082,154.44,154.37,32.95178666]
[1724777251096,6.0082,154.44,154.38,1.29524018]
[1724777251303,6.0082,154.44,154.39,26.47388666]
[1724777251597,16.2028,154.46,154.4,1.29519623]
[1724777252192,16.2028,154.46,154.39,26.47388666]
[1724777252819,16.2028,154.46,154.35,16.1967]
[1724777252820,6.4749,154.45,154.35,16.1967]
[1724777253118,16.2028,154.46,154.39,26.47388666]
[1724777253311,6.0082,154.48,154.4,1.29501169]
[1724777254709,45.0,154.47,154.4,1.29501169]
[1724777254906,0.12549,154.46,154.4,1.29501169]
[1724777255108,0.25098,154.46,154.4,1.29501169]
[1724777259111,0.25098,154.46,154.39,26.47388666]
[1724777263518,6.72508,154.46,154.37,32.98708666]
[1724777263724,45.0,154.45,154.35,32.95248666]
[1724777263900,0.25098,154.44,154.35,32.95248666]
[1724777264101,0.25098,154.44,154.35,26.47388666]
[1724777265206,12.4815,154.48,154.39,26.47388666]
[1724777265406,45.0,154.47,154.4,1.29504482]
[1724777266426,0.12549,154.46,154.4,1.29504482]